Cogmind - Beta 15 @@@ ROGUE MODE // 2025.05.31 @ 22:23:08 Player: Elias Result: Destroyed by P-60 Hacker with Shock Rifle Performance ------------- Evolutions (3) 1500 Regions Visited (6) 1200 Robots Destroyed (110) 550 Value Destroyed (3248) 3248 Prototype IDs (11) 220 Alien Tech Used (0) 0 Bonus (220) 220 TOTAL SCORE: 6938 Bonus ------- High Alert Combat Kills 118 Follower Combat Kills 120 Friendly Fire -18 Cogmind --------- Core Integrity 0/700 Matter 0/300 Energy 160/160 System Corruption 3% Temperature Cool (0) Movement Hovering (110) Ox1 Location -7/Factory Parts ------- > --- POWER (1) -------- Light Nuclear Core > --- PROPULSION (4) --- Improved Airjet > --- UTILITY (6) ------ Large Storage Unit Advanced Weight Redist. System Improved Signal Interpreter Advanced Targeting Computer > --- WEAPON (2) ------- Flak Gun > --- INVENTORY (15) --- Improved Cooling System Improved Signal Interpreter Kinecellerator Improved Shield Generator Drone Bay (2/2) Arc Projector Advanced Beam Rifle Plasma Cannon Improved Datajack Scythe Peak State ------------ > --- POWER ------------ Light Nuclear Core > --- PROPULSION ------- Aerolev Unit Aerolev Unit Improved Airjet Improved Airjet > --- UTILITY ---------- Improved Heat Sink Large Storage Unit Large Storage Unit Advanced Weight Redist. System Improved Signal Interpreter Advanced Targeting Computer > --- WEAPON ----------- Flak Gun Flak Gun > --- INVENTORY -------- Light Nuclear Core Aerolev Unit Improved Airjet Improved Cooling System Improved Signal Interpreter Kinecellerator Improved Shield Generator Drone Bay Arc Projector Advanced Beam Rifle Plasma Cannon Flak Gun Improved Grenade Launcher Improved Datajack Scythe [Rating: 48] Favorites ----------- Power Light Ion Engine Engine Light Ion Engine Power Core Light Nuclear Core Propulsion Aluminum Leg Treads Light Treads Leg Aluminum Leg Hover Unit Cooled Airjet Flight Unit Improved VTOL Module Utility Large Storage Unit Device Improved Sensor Array Storage Large Storage Unit Processor Signal Interpreter Hackware Makeshift System Shield Protection Improved Propulsion Shielding Weapon Light Assault Rifle Energy Gun Advanced Beam Rifle Energy Cannon Subdweller Beam Cannon Ballistic Gun Light Assault Rifle Ballistic Cannon Flak Cannon Launcher Improved Grenade Launcher Special Weapon Flamer Slashing Weapon Scythe Build | -11 -10 -10 -10 -8 -8 -7 ------- Run | Yrd Mat Min Sub Mat Sto Fac Slots Evolved 6 | . . . . 4 . 2 Power . | . . . . . . . Propulsion 2 | . . . . 2 . . Utility 4 | . . . . 2 . 2 Weapon . | . . . . . . . Parts Attached 103 | 8 5 . 9 34 24 23 Power 14 | 1 . . 2 3 5 3 Engine 7 | 1 . . 2 1 3 . Core 7 | . . . . 2 2 3 Reactor . | . . . . . . . Propulsion 29 | 3 . . 2 10 6 8 Treads 2 | 1 . . . 1 . . Leg 9 | 2 . . 2 5 . . Wheel . | . . . . . . . Hover 13 | . . . . 4 1 8 Flight 5 | . . . . . 5 . Utility 23 | 1 3 . . 9 5 5 Device 8 | . . . . 3 3 2 Storage 3 | 1 1 . . . . 1 Processor 6 | . 1 . . 2 1 2 Hackware 1 | . . . . 1 . . Protection 5 | . 1 . . 3 1 . Artifact . | . . . . . . . Weapon 37 | 3 2 . 5 12 8 7 Energy Gun 9 | 1 . . 1 5 1 1 Energy Cannon 4 | . . . 1 2 1 . Ballistic Gun 17 | 2 1 . 2 2 4 6 Ballistic Cannon 1 | . . . . 1 . . Launcher 3 | . . . . 2 1 . Special Weapon 2 | . 1 . 1 . . . Impact Weapon . | . . . . . . . Slashing Weapon 1 | . . . . . 1 . Piercing Weapon . | . . . . . . . Special Melee Weapon . | . . . . . . . Unidentified Prototypes 11 | . . . . 4 6 1 Parts Lost 41 | . 1 . 3 11 8 18 Power 9 | . . . 1 2 3 3 Propulsion 10 | . . . . 2 1 7 Utility 9 | . 1 . . 1 4 3 Weapon 13 | . . . 2 6 . 5 Highest Loss Streak 11 | . 1 . 2 3 2 11 To Critical Strikes . | . . . . . . . Average Backups 12 | 3 8 9 13 13 14 14 Power 1 | . 1 1 2 1 . . Propulsion 2 | 2 2 3 2 1 2 1 Utility 4 | . 2 3 3 6 5 5 Weapon 4 | . 2 2 4 4 5 5 Tool/Special . | . . . . . . . Unused Backups 16 | . . . . 4 3 9 Power . | . . . . . . . Propulsion . | . . . . . . . Utility 8 | . . . . 1 3 4 Weapon 7 | . . . . 3 . 4 Tool/Special 1 | . . . . . . 1 Average Slot Usage (%) 92 | . 92 100 99 86 95 73 Engine 8 | . 14 14 13 6 4 1 Core 1 | . . . . 1 3 3 Leg 14 | . 28 28 28 8 . . Hover 11 | . . . . 18 23 18 Flight 2 | . . . . . 9 7 Device 5 | . . . . 8 10 8 Storage 11 | . 14 14 14 9 9 7 Processor 10 | . 6 14 14 9 9 10 Hackware 1 | . . . . 5 . . Protection 2 | . 1 . . 3 5 . Energy Gun 4 | . . . 5 5 7 . Energy Cannon 2 | . . . 5 1 . . Ballistic Gun 13 | . 26 28 16 6 8 11 Peak Build Rating 48 | 6 7 7 12 42 44 48 Average Rating 22 | 4 6 7 9 28 39 37 On Entrance 16 | . 6 7 7 11 42 39 Naked Turns . | . . . . . . . Heaviest Build 40 | 12 26 26 37 39 40 36 Greatest Support 40 | 20 20 20 20 40 32 34 Greatest Overweight (x) 7 | 1 1 1 1 7 6 4 Average Overweight (x) . | . . 1 1 . . . Largest Inventory Capacity 15 | 8 15 15 15 15 15 15 Average Capacity 14 | 7 11 15 15 15 15 15 Most Carried 15 | 5 9 9 15 15 15 15 Average Carried 12 | 4 8 9 13 13 14 13 Final Capacity 15 | 8 15 15 15 15 15 15 Final Carried 15 | 5 9 9 12 15 15 10 Class Distribution -------------------- 95% | Mutant 4% | Scavenger-Mutant Dominant Class ---------------- Mutant | -10/Materials Mutant | -10/Mines Mutant | -10/Subcaves Mutant | -8/Materials Mutant | -8/Storage Mutant | -7/Factory Resources | -11 -10 -10 -10 -8 -8 -7 ----------- Run | Yrd Mat Min Sub Mat Sto Fac Matter Collected 2622 | 259 180 78 352 564 860 329 Remotely . | . . . . . . . Salvage Created 3584 | 117 306 . 180 836 1427 718 Parts 209 | 11 28 . 14 49 67 40 Haulers Intercepted 11 | . 1 . . 3 6 1 Recyclers Shooed 5 | 1 3 . . 1 . . Parts Field Recycled . | . . . . . . . Retrieved Matter . | . . . . . . . Parts Self-Destructed . | . . . . . . . Prevented . | . . . . . . . Kills | -11 -10 -10 -10 -8 -8 -7 ------- Run | Yrd Mat Min Sub Mat Sto Fac Combat Hostiles Destroyed 76 | . 9 . 5 16 29 17 Guns 42 | . 9 . 4 5 15 9 Cannons 4 | . . . 1 3 . . AOE 27 | . . . . 5 14 8 Classes Destroyed 14 | 3 4 . 1 4 2 . Worker 7 | 2 1 . . 2 . 2 Builder 4 | . . . . 1 1 2 Tunneler 1 | 1 . . . . . . Hauler 11 | . 1 . . 3 6 1 Recycler 5 | 1 . . . 1 1 2 Watcher 6 | . 2 . . 1 1 2 Swarmer 20 | . 6 . . 3 3 8 Grunt 34 | . 3 . . 8 17 6 Duelist 2 | . . . . . 2 . Protector 2 | . . . . . 2 . Sentry 10 | . . . . 3 5 2 Hunter 2 | . . . . 1 . 1 Heavy 1 | . . . . 1 . . Subdweller 5 | . . . 5 . . . Best Kill Streak 11 | 4 8 . 2 5 11 11 Combat Bots Only 11 | . 7 . 2 5 11 6 Max Kills in Single Turn 7 | 1 2 . 1 3 5 7 Gunslinging 1 | . 1 . . . . . Exploded 5 | . . . . 3 5 3 Melee . | . . . . . . . Uniques/NPCs Destroyed . | . . . . . . . Combat | -11 -10 -10 -10 -8 -8 -7 -------- Run | Yrd Mat Min Sub Mat Sto Fac Hostile Shots Fired 637 | . 51 . 23 99 137 327 Missed 191 | . 9 . 6 23 38 115 Hits 446 | . 42 . 17 76 99 212 Melee 3 | . . . . . 3 . Projectile 443 | . 42 . 17 76 96 212 AOE 1 | . . . . . . 1 Critical Strikes 16 | . . . . 5 7 4 Actively Blocked 2 | . . . . . 2 . Damage Taken 6586 | . 488 10 440 1498 1584 2566 Core 1386 | . 84 . 121 261 220 700 Absorbed by Shields . | . . . . . . . Redirected to Shielding 321 | . . . . 17 304 . Regen/Repaired (Parts) 164 | . . . . . 164 . Core Remaining (%) 43 | 100 . . 18 . 12 . Volleys Fired 334 | 9 48 5 34 86 92 60 Largest 2 | 2 2 2 2 2 2 2 Hottest 160 | 60 100 40 110 160 86 80 Shots Fired 600 | 18 91 11 61 131 175 113 Gun 524 | 18 86 11 46 87 165 111 Cannon 41 | . . . 9 32 . . Launcher 15 | . . . . 3 10 2 Special 20 | . 5 . 6 9 . . Kinetic 370 | 12 86 11 29 56 85 91 Thermal 194 | . 5 . 18 71 80 20 Explosive 15 | . . . . 3 10 2 Electromagnetic 21 | 6 . . 14 1 . . Robot Hit Streak 16 | 5 8 3 10 16 12 15 Robot Miss Streak 6 | 1 3 1 2 6 2 5 Penetration Max . | . . . . . . . Secondary Targets 4 | . 1 . . . 2 1 Max Gunslinging Chain 1 | . 1 . . . 1 1 Shots Hit Robots 401 | 10 57 4 33 92 128 77 Core Hits 214 | 4 21 . 11 53 67 58 Critical Kills 1 | . . . . 1 . . Critical Parts Destroyed . | . . . . . . . Critical Strikes 15 | . . . 2 5 7 1 Burn 13 | . . . 1 4 7 1 Meltdown 1 | . . . . 1 . . Corrupt 1 | . . . 1 . . . Melee Attacks 11 | . . . . . 11 . Impact . | . . . . . . . Slashing 11 | . . . . . 11 . Piercing . | . . . . . . . Sneak Attacks . | . . . . . . . Combat Hostiles . | . . . . . . . Follow-up Attacks . | . . . . . . . Damage Inflicted 9997 | 135 691 38 453 2051 3871 2758 Guns 5926 | 135 689 38 350 1081 2263 1370 Cannons 675 | . . . 103 572 . . Explosions 3269 | . . . . 315 1566 1388 Melee . | . . . . . . . Ramming 51 | . 2 . . 7 42 . Kinetic 4054 | 52 689 38 197 888 1010 1180 Thermal 3481 | . . . 135 841 1253 1252 Explosive 2207 | . . . . 315 1566 326 Electromagnetic 204 | 83 . . 121 . . . Impact . | . . . . . . . Slashing . | . . . . . . . Piercing . | . . . . . . . Highest Corruption 3 | . 1 1 1 . 1 3 Average Corruption 1 | . 1 1 1 . 1 1 Corruption Purged . | . . . . . . . Corruption Blocked . | . . . . . . . Effects 31 | . 4 1 17 . 8 1 Message Errors 4 | . 1 . 1 . 2 . Matter Fused 11 | . 2 . 7 . 2 . Heat Flow Errors 3 | . . . 1 . 2 . Energy Discharges 3 | . . . 2 . 1 . Data Loss (minor) 5 | . . . 5 . . . Data Loss (major) 2 | . 1 . . . . 1 Misfires 2 | . . 1 1 . . . Weapon Failures 1 | . . . . . 1 . Overload Shots . | . . . . . . . Overflow Damage 170 | . . . . 8 12 150 Projectiles . | . . . . . . . Explosions 170 | . . . . 8 12 150 Melee . | . . . . . . . Knockbacks 2 | . . . . 1 1 . Impact 1 | . . . . . 1 . Kinetic 1 | . . . . 1 . . Secondary . | . . . . . . . Self-Inflicted Damage 122 | . . . . 60 62 . Shots 3 | . . . . 2 1 . Rammed 7 | . . . . 2 5 . Targets Rammed 8 | . 1 . . 2 5 . Kicked 1 | . 1 . . . . . Crushed . | . . . . . . . Highest Temperature 469 | . 34 6 85 330 167 469 Average Temperature 66 | . 13 6 16 63 52 156 Received Heat Transfer 2022 | . 150 6 33 387 738 708 Effects 3 | . . . . . . 3 Shutdowns 1 | . . . . . . 1 Damage (minor) 2 | . . . . . . 2 Siege Activations . | . . . . . . . Martial Activations . | . . . . . . . Shielding Activations . | . . . . . . . Robots Disrupted 1 | . . . . 1 . . Combat Hostiles 1 | . . . . 1 . . Robots Corrupted . | . . . . . . . Combat Hostiles . | . . . . . . . Parts Fried . | . . . . . . . Impact Corruptions . | . . . . . . . Robots Melted 4 | . . . . 4 . . Combat Hostiles 3 | . . . . 3 . . Parts Melted 14 | . . . . 9 1 4 Heat Transferred 7046 | . . . 296 2767 2839 1144 Parts Sabotaged . | . . . . . . . Parts Stolen . | . . . . . . . Parts Stripped . | . . . . . . . Power Chain Reactions . | . . . . . . . Alert | -11 -10 -10 -10 -8 -8 -7 ------- Run | Yrd Mat Min Sub Mat Sto Fac Maximum Alert Level 2 | . . . . . 2 2 Low Security (%) 76 | 100 100 100 . 100 59 . Level 1 9 | . . . . . . 83 Level 2 14 | . . . . . 39 16 Level 3 . | . . . . . . . Level 4 . | . . . . . . . Level 5 . | . . . . . . . High Security . | . . . . . . . Max Security . | . . . . . . . Peak Influence 611 | 10 165 58 . 152 580 611 Initial 262 | . . 5 . . 18 262 Average 145 | 1 64 6 . 52 262 333 Influence Increases 2678 | 20 257 58 . 554 1124 665 Destroy 0b10 Robot/C 1420 | . 180 40 . 320 540 340 Destroy 0b10 Robot/NC 180 | 20 20 . . 40 55 45 Destroy Leader 334 | . 36 10 . 88 124 76 Allied During Kill 8 | . . 8 . . . . Successful Hack 51 | . 2 . . 5 44 . Disable Machine 195 | . 15 . . 30 60 90 Destroy Structure 160 | . 4 . . 26 76 54 Partial Spotted 30 | . . . . 15 . 15 Lose Combat Pursuer 300 | . . . . 30 225 45 Influence Decreases 2169 | 20 242 45 28 510 590 734 Entered New Map 368 | . . 10 16 . 26 316 Time Decay 1404 | 20 232 35 12 423 444 238 Lost Part 357 | . 10 . . 87 80 180 Lost Ally 40 | . . . . . 40 . Squads Dispatched 11 | . . . . 2 6 3 Investigation 1 | . . . . . 1 . Extermination 1 | . . . . . . 1 Reinforcement 5 | . . . . 2 2 1 Assault 3 | . . . . . 3 . Garrison 1 | . . . . . . 1 Intercept . | . . . . . . . Searches Triggered . | . . . . . . . Construction Impeded 2 | . . . . . 1 1 Haulers Reinforced . | . . . . . . . Active Scanning Responses . | . . . . . . . Cargo Convoy Interrupts . | . . . . . . . Stealth | -11 -10 -10 -10 -8 -8 -7 --------- Run | Yrd Mat Min Sub Mat Sto Fac Distress Signals 8 | . . . . 2 4 2 Communications Jammed . | . . . . . . . Distress Signals . | . . . . . . . Times Spotted 136 | . 11 2 8 30 60 25 Peak Tracking Total 11 | . 4 2 2 5 11 8 Tactical Retreats 10 | . . . . 2 7 1 Traps | -11 -10 -10 -10 -8 -8 -7 ------- Run | Yrd Mat Min Sub Mat Sto Fac Traps Triggered 3 | . 1 . 1 . 1 . Indirectly . | . . . . . . . Trap Hack Attempts . | . . . . . . . Triggered . | . . . . . . . Disarmed . | . . . . . . . Reprogrammed . | . . . . . . . Reused . | . . . . . . . Traps Extracted . | . . . . . . . Installed . | . . . . . . . Triggered . | . . . . . . . Machines | -11 -10 -10 -10 -8 -8 -7 ---------- Run | Yrd Mat Min Sub Mat Sto Fac Machines Disabled 13 | . 1 . . 2 4 6 Max in Single Turn 4 | . 1 . . 1 2 4 Garrison Access 1 | . . . . 1 . . Machines Repaired . | . . . . . . . Machines Dismantled . | . . . . . . . Machines Sabotaged . | . . . . . . . Overloaded Fab Kills . | . . . . . . . Hacking | -11 -10 -10 -10 -8 -8 -7 --------- Run | Yrd Mat Min Sub Mat Sto Fac Machines Accessed 12 | . 2 . . 4 6 . Terminals 9 | . 2 . . 3 4 . Fabricators . | . . . . . . . Repair Stations 2 | . . . . . 2 . Recycling Units . | . . . . . . . Scanalyzers . | . . . . . . . Garrison Access 1 | . . . . 1 . . Total Hacks 27 | . 6 . . 9 12 . Successful 16 | . 3 . . 4 9 . Failed 11 | . 3 . . 5 3 . Catastrophic 3 | . . . . 2 1 . Database Lockouts . | . . . . . . . Manual . | . . . . . . . Terminals 18 | . 6 . . 7 5 . Fabricators . | . . . . . . . Repair Stations 7 | . . . . . 7 . Recycling Units . | . . . . . . . Scanalyzers . | . . . . . . . Garrison Access 2 | . . . . 2 . . Terminal Hacks 10 | . 3 . . 3 4 . Record 3 | . 2 . . 1 . . Part Schematic 1 | . . . . . 1 . Robot Analysis 1 | . 1 . . . . . Open Door 2 | . . . . . 2 . Emergency Access Points 1 | . . . . 1 . . Transport Status 1 | . . . . . 1 . Zone Layout 1 | . . . . 1 . . Fabricator Hacks . | . . . . . . . Repair Station Hacks 5 | . . . . . 5 . Scan Component 3 | . . . . . 3 . Repair 2 | . . . . . 2 . Recycling Unit Hacks . | . . . . . . . Scanalyzer . | . . . . . . . Garrison Access Hacks 1 | . . . . 1 . . Seal Access 1 | . . . . 1 . . Unauthorized Hacks . | . . . . . . . Terminals . | . . . . . . . Fabricators . | . . . . . . . Repair Stations . | . . . . . . . Recycling Units . | . . . . . . . Scanalyzers . | . . . . . . . Garrison Access . | . . . . . . . Data Cores Recovered . | . . . . . . . Used . | . . . . . . . Hacking Detections 8 | . 2 . . 2 4 . Full Trace Events 3 | . . . . 2 1 . Feedback Events . | . . . . . . . Feedback Blocked . | . . . . . . . Robot Schematics Acquired . | . . . . . . . Robots Built . | . . . . . . . Authchips . | . . . . . . . Time . | . . . . . . . Total Robot Build Rating . | . . . . . . . Part Schematics Acquired 1 | . . . . . 1 . Parts Built . | . . . . . . . Authchips . | . . . . . . . Time . | . . . . . . . Total Part Build Rating . | . . . . . . . Parts Repaired 2 | . . . . . 2 . Time 123 | . . . . . 123 . Parts Recycled . | . . . . . . . Recycled Matter . | . . . . . . . Retrieved Matter . | . . . . . . . Retrieved Components . | . . . . . . . Parts Scanalyzed . | . . . . . . . Part Schematics Acquired . | . . . . . . . Parts Damaged . | . . . . . . . Bothacking | -11 -10 -10 -10 -8 -8 -7 ------------ Run | Yrd Mat Min Sub Mat Sto Fac Used RIF Installer . | . . . . . . . Robots Hacked . | . . . . . . . Non-combat . | . . . . . . . Combat . | . . . . . . . Robot Hacks Applied . | . . . . . . . Relay Couplers Released . | . . . . . . . Fabnet Peak Effective % . | . . . . . . . Robots Rewired . | . . . . . . . Allies Hacked . | . . . . . . . Hacks Repelled . | . . . . . . . Allies | -11 -10 -10 -10 -8 -8 -7 -------- Run | Yrd Mat Min Sub Mat Sto Fac Total Allies 5 | . . 3 . . 2 . Largest Group 3 | . . 3 3 . 2 . Highest-Rated Group 62 | . . 40 40 . 62 . Highest-Rated Ally 31 | . . 16 16 . 31 . Total Orders 2 | . . 1 1 . . . GUARD 2 | . . 1 1 . . . Ally Attacks 51 | . . 17 29 . 5 . Total Damage 694 | . . 225 382 . 87 . Kills 4 | . . 2 2 . . . Allies Corrupted . | . . . . . . . Allies Melted . | . . . . . . . Intel | -11 -10 -10 -10 -8 -8 -7 ------- Run | Yrd Mat Min Sub Mat Sto Fac Active Infowar (turns) 2504 | . . . . 1163 1249 92 Sensors 2504 | . . . . 1163 1249 92 T.N.C. 1 | . . . . 1 . . Robot Analysis Total 1 | . 1 . . . . . Derelict Logs Recovered 2 | . . 1 1 . . . Drone Launches . | . . . . . . . Drone Recoveries . | . . . . . . . Exploration | -11 -10 -10 -10 -8 -8 -7 ------------- Run | Yrd Mat Min Sub Mat Sto Fac Turns Passed 6130 | 168 653 320 1672 1441 1371 505 Spaces Moved 3312 | 85 317 162 812 687 779 470 Core 18 | 17 . . . 1 . . Treads 10 | . . . . 10 . . Legs 1571 | 68 317 162 812 212 . . Wheels . | . . . . . . . Hover 1411 | . . . . 464 517 430 Flight 302 | . . . . . 262 40 Fastest Speed 38 | 50 120 190 190 100 38 38 Average Speed 131 | 143 149 190 190 127 96 59 Slowest Speed 455 | 190 190 190 190 400 455 290 Overloaded Moves . | . . . . . . . Propulsion Burnouts . | . . . . . . . Robots Hopped . | . . . . . . . Potential Cave-ins . | . . . . . . . Cave-ins Triggered . | . . . . . . . Exploration Rate (%) 42 | 5 46 44 40 54 90 15 Regions Visited 6 Branch Regions 3 Pre-discovered Areas . | . . . . . . . Known Exits Taken 5 | . 1 1 1 1 1 . Unknown Exits Taken 1 | 1 . . . . . . Scrap Searched 10 | . . . 10 . . . Spaces Dug 20 | . 4 . . 10 6 . Terrain Destroyed 166 | . 4 . 1 25 78 58 Melee 6 | . . . . . 6 . Projectile 5 | . 4 . 1 . . . AOE 155 | . . . . 25 72 58 Terrain Rammed . | . . . . . . . Walls Destroyed . | . . . . . . . Machines Disabled . | . . . . . . . Actions | -11 -10 -10 -10 -8 -8 -7 --------- Run | Yrd Mat Min Sub Mat Sto Fac Total 4455 | 112 394 166 871 1109 1200 603 Wait 513 | . 13 . . 236 242 22 Move 3306 | 84 316 161 811 686 778 470 Hop . | . . . . . . . Pick Up 87 | 11 5 . 9 35 17 10 Fast Attach 19 | . 1 . . 4 8 6 Attach 45 | 6 1 . 4 17 5 12 Detach . | . . . . . . . Swap 80 | 2 8 . 8 24 26 12 Drop 52 | . 1 . 5 19 16 11 Fire 334 | 9 48 5 34 86 92 60 Melee 11 | . . . . . 11 . Ram 7 | . . . . 2 5 . Kick 1 | . 1 . . . . . Crush . | . . . . . . . Escape Stasis . | . . . . . . . Rewire . | . . . . . . . Trap . | . . . . . . . Miscellaneous . | . . . . . . . Route ------- -11/Scrapyard -10/Materials (discovered 3 exits: *Mat x2 / *Min) -10/Mines (discovered 2 exits: *Mat / *Sub) -10/Subcaves (discovered 2 exits: *Mat x2) -8/Materials (discovered 3 exits: *Fac / *Sto x2) -8/Storage -7/Factory History --------- Turn | Location | Event 2 | -11/Scrapyard | Met Revision 17 13 | -11/Scrapyard | Discovered new exit (range 14) 169 | -11/Scrapyard | Entered Materials 271 | -10/Materials | Discovered new exit (range 6) 323 | -10/Materials | Build established: Mutant 400 | -10/Materials | Destroyed 7 combat bots 432 | -10/Materials | Discovered new exit (range 5) 633 | -10/Materials | Discovered new exit (range 8) 652 | -10/Materials | Identified exit to Materials 669 | -10/Materials | Derelicts attacked the area 811 | -10/Materials | Identified exit to Mines 822 | -10/Materials | Entered Mines 932 | -10/Mines | Discovered exit to Materials (range 9) 956 | -10/Mines | Assisted by bots powering up and referring to "LRC-V3" 1131 | -10/Mines | Discovered new exit (range 5) 1140 | -10/Mines | Identified exit to Subcaves 1142 | -10/Mines | Entered Subcaves 1142 | -10/Subcaves | Accompanied by 3 allies 1143 | -10/Subcaves | Approached by a straggling Scientist 1354 | -10/Subcaves | Core integrity fell below 50% 2032 | -10/Subcaves | Disturbed a concealed Subdweller 2144 | -10/Subcaves | Discovered new exit (range 9) 2158 | -10/Subcaves | Identified exit to Materials 2205 | -10/Subcaves | Discovered exit to Materials (range 14) 2424 | -10/Subcaves | Core integrity fell below 20% 2556 | -10/Subcaves | Shifting Twisted Machinery released Spk. Treads 2560 | -10/Subcaves | Shifting Twisted Machinery released Sub. Beam Cannon 2814 | -10/Subcaves | Entered Materials 2814 | -8/Materials | Evolved 4 slots: Propulsion x2, Utility x2 2815 | -8/Materials | Identified exit to Storage 3249 | -8/Materials | Discovered exit to Storage (range 13) 3351 | -8/Materials | Lost 3 parts (1n2w) 3584 | -8/Materials | Discovered new exit (range 16) 4176 | -8/Materials | Identified exit to Factory 4255 | -8/Materials | Entered Storage 4315 | -8/Storage | Repaired Cld. Airjet 4357 | -8/Storage | Repaired Broken Cld. Airjet 4555 | -8/Storage | Core integrity fell below 50% 5003 | -8/Storage | Met a pair of Derelict thieves 5105 | -8/Storage | Destroyed 11 combat bots 5455 | -8/Storage | First assault squad dispatched 5518 | -8/Storage | Core integrity fell below 20% 5610 | -8/Storage | Discovered exit to Factory (range 7) 5626 | -8/Storage | Entered Factory 5626 | -7/Factory | Evolved 2 slots: Utility x2 5725 | -7/Factory | Core integrity fell below 50% 5749 | -7/Factory | Lost 7 parts (1p2n2u2w) 6008 | -7/Factory | Garrison activated, responded to threat 6074 | -7/Factory | Core integrity fell below 20% 6110 | -7/Factory | Lost 11 parts (2p5n1u3w) 6131 | -7/Factory | Destroyed by P-60 Hacker with Shock Rifle Last Messages --------------- 06062_ S-27 Virus destroyed. 06064_ K-01 Serf collects debris. 06066_ Acquired 9 matter. 06067_ K-01 Serf collects debris. 06069_ Imp. Airjet destroyed. 06070_ K-01 Serf collects debris. 06070_ U-05 Engineer builds a Wall. 06073_ Aerolev Unit destroyed. 06073_ Flak Gun destroyed. 06074_ K-01 Serf collects debris. 06074_ U-05 Engineer lays Concrete. 06076_ Aerolev Unit destroyed. 06077_ U-05 Engineer builds a Wall. 06078_ K-01 Serf collects debris. 06079_ Mic. Nuclear Core destroyed. 06081_ U-05 Engineer lays Concrete. 06084_ U-05 Engineer builds a Wall. 06084_ P-60 Hacker resets Y-54 Guardian, system corruption cleaned. 06088_ U-05 Engineer builds a Wall. 06118_ System corrupted: Substantial component data lost. Map ----- +----------------------------------------------------+ | ???????????????????????????????????????? | | ????????????????????????????????????????? | | ?????????????????????????????????????????? """ " | | ????????????????????????????????????????? """ " | | ????????????????????????????????????????? """ " | | ??????????????????????????????????????????# | | ??????????????????????????????????????????# """ " | | ??????????????????????????????????????????# """ " | | ??????????????????????????????????????????# """ " | | ??????????????????????????????????????????# | | ??????????????????????????????????????????# """ " | | ????????????????????????????????########### """ " | | ????????????????????????????????# """ # """ " | | ????????????????????????????????# """ # | | ????????????????????????????????# """ # """ " | | ????????????????????????????????# # """ " | | ?????????????" "????????????????# ""# """ " | | ?????????????k ???????????????# T"# | | ???????????? ??????????????? ""# """ " | | ???????????? ???????????????? ??# """ " | | ???????????? t###+#############+##### """ " | | ??????????? p | | ??????????? | | ?????????? ***k | | ?????????? *** | | ?????????? *** @ t | | ?????????????????#############+######+############ | | ???????????????????????????? ????????????????? | | ?????????????????????????? ??????????????? | | ?????????????????????????# """ """ #?????????????? | | ?????????????????????????# """ """ #?????????????? | | ?????????????????????????# """ """ #?????????????? | | ?????????????????????????# "" "" #?????????????? | | ?????????????????????????# "" "??#?????????????? | | ????????????????????????????? ????????????????? | | ?????????????????????????????###?????????????????? | | ?????????????????????????????????????????????????? | | ?????????????????????????????????????????????????? | | ?????????????????????????????????????????????????? | | ?????????????????????????????????????????????????? | | ?????????????????????????????????????????????????? | | ?????????????????????????????????????????????????? | | ?????????????????????????????????????????????????? | | ?????????????????????????????????????????????????? | | ?????????????????????????????????????????????????? | | ?????????????????????????????????????????????????? | | ?????????????????????????????????????????????????? | | ?????????????????????????????????????????????????? | | ?????????????????????????????????????????????????? | | ?????????????????????????????????????????????????? | +----------------------------------------------------+ Best States ------------- Heat Dissipation 48 Energy Generation 15 Energy Capacity 265 Matter Stores 300 Matter Capacity 300 Sight Range 16 Robot Scan Range 15 Terrain Scan Density 10 Additional Mass Support 9 Armor Coverage 150 Propulsion Shielding 66 Evasion (%) 57 Targeting Accuracy 8 Recoil Reduction 2 Kinecelleration 30 Defensive Hacking 11 Item Schematics ----------------- Focal Shield | -8/Storage | Hacked Robot Schematics ------------------ None Fabricated ------------ Nothing Repaired ---------- Cld. Airjet | 7% | -8/Storage Cld. Airjet | 10% | -8/Storage | Broken Alien Tech Used ----------------- None Achievements -------------- None Challenges ------------ None Game ------ Seed DiametricTerrainEngine Manual? 0 Play Time 01:01:25 Cumulative 38.2 hours Start 2025.05.31 @ 18:36:56 End 2025.05.31 @ 22:23:08 Sessions 2 Manual Loads 0 Difficulty Rogue Special Mode None Game No. 59 Rogue 59 Adventurer 0 Explorer 0 Win Type - Total 0 Types 0/0/0/0/0/0/0/0/0/0 Lore% 32 Gallery% 35 Achievement% 29 Wizard Run 0 Options --------- Layout 0 ASCII 0 Keyboard 0 Movement Mouse Keybinds 0 Fullscreen 1 Font 18/SmallcapsGlow Map View 76x50 Zoom Use 0% Tactical HUD 1 Map Filters NONE Filters NONE Steam 1 RUN: 49ee1e75-3010-47a5-b0cf-9122150fc2fb